[Event "FIDE World Chess Cup 2015"]
[Site "Baku"]
[Date "2015.09.22"]
[Round "4.4"]
[White "Wojtaszek, Radoslaw"]
[Black "Giri, Anish"]
[Result "0-1"]
[ECO "D10"]
[WhiteElo "2741"]
[BlackElo "2793"]
[Annotator "Robot 11"]
[PlyCount "82"]
[EventDate "2015.??.??"]
[EventCountry "AZE"]
[TimeControl "1500+10"]

1. d4 {[%emt 0:00:00]} d5 {[%emt 0:00:00]} 2. c4 {[%emt 0:00:00]} c6 {[%emt 0:
00:00]} 3. Nc3 {[%emt 0:00:00]} Nf6 {[%emt 0:00:00]} 4. e3 {[%emt 0:00:00]} e6
{[%emt 0:00:00]} 5. b3 {[%emt 0:00:00]} Bb4 {[%emt 0:00:06]} 6. Bb2 {[%emt 0:
00:03]} Ne4 {[%emt 0:00:07]} 7. Nge2 {[%emt 0:00:03]} Qf6 {[%emt 0:00:10]} 8.
f3 {[%emt 0:00:31]} Bxc3+ {[%emt 0:00:02]} 9. Bxc3 {[%emt 0:00:35]} Nxc3 {
[%emt 0:00:05]} 10. Nxc3 {[%emt 0:00:02]} O-O {[%emt 0:00:07]} 11. f4 {[%emt 0:
01:47]} c5 {[%emt 0:03:37]} 12. cxd5 {[%emt 0:00:05]} cxd4 {[%emt 0:00:06]} 13.
Qxd4 {[%emt 0:01:34]} Qxd4 {[%emt 0:00:08]} 14. exd4 {[%emt 0:00:01]} exd5 {
[%emt 0:00:01]} 15. Nxd5 {[%emt 0:00:21]} Nc6 {[%emt 0:00:05]} 16. Nc7 {[%emt
0:01:38]} Rb8 {[%emt 0:00:02]} 17. d5 {[%emt 0:00:00]} Ne7 {[%emt 0:01:28]} 18.
O-O-O {[%emt 0:00:00]} Rd8 {[%emt 0:00:13]} 19. Bc4 {[%emt 0:02:15]} Kf8 {
[%emt 0:03:23]} 20. Rhe1 {[%emt 0:03:10]} Bg4 {[%emt 0:00:28]} 21. Rd2 {[%emt
0:00:10]} Rbc8 {[%emt 0:01:25]} 22. h3 {[%emt 0:00:26]} Bd7 {[%emt 0:00:20]}
23. g4 {[%emt 0:02:46]} Rxc7 {[%emt 0:00:32]} 24. d6 {[%emt 0:00:03]} Rxc4+ {
[%emt 0:00:05]} 25. bxc4 {[%emt 0:00:01]} Nc6 {[%emt 0:00:31]} 26. c5 {[%emt 0:
00:05]} g6 {[%emt 0:00:40]} 27. Rb2 {[%emt 0:00:29]} Bc8 {[%emt 0:00:12]} 28.
Re4 {[%emt 0:01:06]} Kg7 {[%emt 0:00:38]} 29. Kd2 {[%emt 0:00:30]} h5 {[%emt 0:
00:57]} 30. Kc3 {[%emt 0:03:29]} hxg4 {[%emt 0:00:04]} 31. hxg4 {[%emt 0:00:02]
} Rh8 {[%emt 0:01:45]} 32. Re3 {[%emt 0:00:01]} Rh1 {[%emt 0:00:09]} 33. Rd3 {
[%emt 0:00:21]} Nb8 {[%emt 0:00:54]} 34. g5 {[%emt 0:03:02]} Rc1+ {[%emt 0:01:
35]} 35. Kd4 {[%emt 0:00:07]} Nd7 {[%emt 0:00:46]} 36. Rb5 {[%emt 0:00:38]} a6
{[%emt 0:00:28]} 37. Ra5 {[%emt 0:00:01]} Nb8 {[%emt 0:00:21]} 38. Ke3 {[%emt
0:00:21]} Bd7 {[%emt 0:00:54]} 39. Rb3 {[%emt 0:01:03]} Bc6 {[%emt 0:00:41]}
40. Kd4 {[%emt 0:00:37]} Nd7 {[%emt 0:00:21]} 41. Rc3 {[%emt 0:00:21]} Rf1 {
[%emt 0:00:07]} 0-1